Cogmind - Beta 9.2 @@@ ROGUE MODE // 2019.11.17 @ 00:08:37 Player: Cassie Rose Result: Destroyed by L-31 Rogue with Katana Performance ------------- Evolutions (1) 500 Regions Visited (2) 400 Robots Destroyed (46) 230 Value Destroyed (1016) 1016 Prototype IDs (1) 20 Alien Tech Used (0) 0 Bonus (0) 0 TOTAL SCORE: 2166 Bonus ------- None Cogmind --------- Core Integrity 0/400 Matter 300/300 Energy 265/265 System Corruption 1% Temperature Cool (0) Movement Core (150) Ox2 Location -9/Materials Parts ------- > --- POWER (1) -------- Improved Ion Engine > --- PROPULSION (3) --- (None) > --- UTILITY (3) ------ Improved Signal Interpreter Terrain Scan Processor > --- WEAPON (2) ------- Katana > --- INVENTORY (4) ---- Structural Scanner Transport Network Coupler Peak State ------------ > --- POWER ------------ Improved Ion Engine > --- PROPULSION ------- Light Treads Aluminum Leg Aluminum Leg > --- UTILITY ---------- Sensor Array Signal Interpreter ECM Suite > --- WEAPON ----------- Improved Assault Rifle Katana > --- INVENTORY -------- Ion Engine Heavy Assault Rifle [Rating: 14] Favorites ----------- Power Light Ion Engine Engine Light Ion Engine Propulsion Aluminum Leg Treads Light Treads Leg Aluminum Leg Hover Unit Improved Hover Unit Flight Unit Flight Unit Utility ECM Suite Device ECM Suite Storage Small Storage Unit Processor Signal Interpreter Weapon Katana Energy Gun Medium Laser Ballistic Gun Improved Assault Rifle Launcher Grenade Launcher Slashing Weapon Katana Special Melee Weapon Datajack Build | -11 -10 -9 ------- Run | Scr Mat Mat Slots Evolved 2 | . . 2 Power . | . . . Propulsion 1 | . . 1 Utility 1 | . . 1 Weapon . | . . . Parts Attached 58 | 8 10 40 Power 10 | 1 1 8 Engine 10 | 1 1 8 Core . | . . . Reactor . | . . . Propulsion 23 | 2 3 18 Treads 2 | . . 2 Leg 11 | 2 . 9 Wheel . | . . . Hover 1 | . . 1 Flight 9 | . 3 6 Utility 11 | 2 2 7 Device 7 | 1 1 5 Storage 1 | 1 . . Processor 3 | . 1 2 Hackware . | . . . Protection . | . . . Artifact . | . . . Weapon 14 | 3 4 7 Energy Gun 7 | 3 3 1 Energy Cannon . | . . . Ballistic Gun 3 | . . 3 Ballistic Cannon . | . . . Launcher 2 | . 1 1 Special Weapon . | . . . Impact Weapon . | . . . Slashing Weapon 1 | . . 1 Piercing Weapon . | . . . Special Melee Weapon 1 | . . 1 Unidentified Prototypes 1 | . . 1 Parts Lost 18 | . . 18 Power 3 | . . 3 Propulsion 8 | . . 8 Utility 4 | . . 4 Weapon 3 | . . 3 Highest Loss Streak 6 | . . 6 Average Slot Usage (%) 90 | . 100 87 Engine 11 | . 14 10 Leg 15 | . 8 17 Flight 10 | . 19 7 Device 16 | . 14 17 Storage 3 | . 13 . Processor 11 | . . 14 Energy Gun 7 | . 27 . Ballistic Gun 2 | . . 3 Slashing Weapon 7 | . . 9 Special Melee Weapon 1 | . . 2 Naked Turns . | . . . Heaviest Build 14 | 14 14 14 Greatest Support 30 | 20 20 30 Greatest Overweight (x) 3 | 3 3 3 Average Overweight (x) . | . . . Largest Inventory Capacity 6 | 6 6 4 Average Capacity 4 | 5 5 4 Most Carried 6 | 6 6 4 Average Carried 3 | 3 5 3 Final Capacity 6 | 6 4 4 Final Carried 6 | 6 3 2 Class Distribution -------------------- 52% | Scavenger-Mutant 47% | Mutant Dominant Class ---------------- Mutant | -10/Materials Scavenger-Mutant | -9/Materials Resources | -11 -10 -9 ----------- Run | Scr Mat Mat Matter Collected 807 | 280 100 427 Remotely . | . . . Salvage Created 1785 | 114 238 1433 Parts 105 | 5 15 85 Haulers Intercepted 4 | . 1 3 Recyclers Shooed 2 | . . 2 Parts Field Recycled . | . . . Retrieved Matter . | . . . Parts Self-Destructed . | . . . Prevented . | . . . Kills | -11 -10 -9 ------- Run | Scr Mat Mat Combat Hostiles Destroyed 29 | . 6 23 Melee 21 | . . 21 Guns 8 | . 6 2 Classes Destroyed 11 | 2 4 5 Worker 1 | . . 1 Builder 2 | . . 2 Tunneler 1 | 1 . . Hauler 4 | . 1 3 Recycler 4 | 1 . 3 Operator 4 | . 1 3 Watcher 1 | . . 1 Swarmer 8 | . 3 5 Grunt 14 | . 3 11 Duelist 1 | . . 1 Sentry 6 | . . 6 Best Kill Streak 3 | 2 3 3 Combat Bots Only 3 | . 3 3 Max Kills in Single Turn 1 | 1 1 1 Gunslinging . | . . . Exploded . | . . . Melee 1 | . . 1 Uniques/NPCs Destroyed . | . . . Combat | -11 -10 -9 -------- Run | Scr Mat Mat Damage Taken 1951 | . 320 1631 Core 449 | . 47 402 Absorbed by Shields . | . . . Core Remaining (%) 90 | 100 81 . Volleys Fired 49 | 3 30 16 Largest 2 | 2 2 2 Hottest 90 | 80 90 73 Shots Fired 79 | 6 53 20 Gun 78 | 6 53 19 Cannon . | . . . Launcher 1 | . . 1 Special . | . . . Kinetic 16 | . . 16 Thermal 30 | . 27 3 Explosive 1 | . . 1 Electromagnetic 32 | 6 26 . Robot Hit Streak 15 | 2 13 15 Robot Miss Streak 6 | 1 6 1 Penetration Max . | . . . Secondary Targets 2 | . 2 . Max Gunslinging Chain 1 | . 1 . Shots Hit Robots 146 | 3 27 116 Core Hits 56 | 2 13 41 Critical Hits 1 | . . 1 Critical Kills . | . . . Critical Parts Destroyed 1 | . . 1 Melee Attacks 123 | . . 123 Impact . | . . . Slashing 108 | . . 108 Piercing . | . . . Sneak Attacks 29 | . . 29 Combat Hostiles . | . . . Follow-up Attacks . | . . . Damage Inflicted 4554 | 54 321 4179 Guns 598 | 54 321 223 Cannons . | . . . Explosions 41 | . . 41 Melee 3915 | . . 3915 Ramming . | . . . Kinetic 199 | . . 199 Thermal 258 | . 234 24 Explosive 41 | . . 41 Electromagnetic 141 | 54 87 . Impact . | . . . Slashing 3915 | . . 3915 Piercing . | . . . Highest Corruption 1 | . . 1 Average Corruption 1 | . . 1 Corruption Purged . | . . . Effects 1 | . . 1 Targeting Errors 1 | . . 1 Overload Shots . | . . . Overflow Damage 652 | . . 652 Projectiles . | . . . Explosions 29 | . . 29 Melee 623 | . . 623 Knockbacks . | . . . Impact . | . . . Kinetic . | . . . Secondary . | . . . Self-Inflicted Damage 37 | . . 37 Shots 1 | . . 1 Rammed . | . . . Targets Rammed . | . . . Kicked . | . . . Crushed . | . . . Highest Temperature 266 | 18 266 16 Average Temperature 81 | 12 92 8 Received Heat Transfer 579 | . 60 519 Siege Activations . | . . . Robots Corrupted . | . . . Combat Hostiles . | . . . Parts Fried . | . . . Impact Corruptions . | . . . Robots Melted . | . . . Combat Hostiles . | . . . Parts Melted 4 | . 4 . Heat Transferred 729 | . 655 74 Parts Sabotaged . | . . . Parts Stolen . | . . . Parts Stripped . | . . . Power Chain Reactions . | . . . Missiles Intercepted . | . . . Alert | -11 -10 -9 ------- Run | Scr Mat Mat Peak Influence 276 | 10 110 276 Average Influence 87 | 2 52 105 Maximum Alert Level 1 | . . 1 Low Security (%) 91 | 100 100 87 Level 1 8 | . . 12 Level 2 . | . . . Level 3 . | . . . Level 4 . | . . . Level 5 . | . . . High Security . | . . . Max Security . | . . . Squads Dispatched 7 | . 4 3 Investigation 3 | . 3 . Extermination . | . . . Reinforcement 4 | . 1 3 Assault . | . . . Garrison . | . . . Intercept . | . . . Construction Impeded . | . . . Haulers Reinforced . | . . . Stealth | -11 -10 -9 --------- Run | Scr Mat Mat Distress Signals 4 | . 2 2 Communications Jammed . | . . . Distress Signals . | . . . Times Spotted 66 | . 10 56 Peak Tracking Total 8 | . 3 8 Tactical Retreats 15 | . 2 13 Traps | -11 -10 -9 ------- Run | Scr Mat Mat Traps Triggered 2 | . 1 1 Indirectly . | . . . Trap Hack Attempts . | . . . Triggered . | . . . Disarmed . | . . . Reprogrammed . | . . . Reused . | . . . Traps Extracted . | . . . Installed . | . . . Triggered . | . . . Machines | -11 -10 -9 ---------- Run | Scr Mat Mat Machines Disabled . | . . . Max in Single Turn . | . . . Machines Sabotaged . | . . . Garrisons Compromised . | . . . Overloaded Fab Kills . | . . . Fab Network Shutdowns . | . . . Hacking | -11 -10 -9 --------- Run | Scr Mat Mat Machines Accessed 6 | . 2 4 Terminals 6 | . 2 4 Fabricators . | . . . Repair Stations . | . . . Recycling Units . | . . . Scanalyzers . | . . . Garrison Access . | . . . Total Hacks 18 | . 5 13 Successful 10 | . 2 8 Failed 8 | . 3 5 Catastrophic 3 | . 2 1 Database Lockouts . | . . . Manual 17 | . 4 13 Terminals 18 | . 5 13 Fabricators . | . . . Repair Stations . | . . . Recycling Units . | . . . Scanalyzers . | . . . Garrison Access . | . . . Terminal Hacks 5 | . 1 4 Branch Access Points 1 | . . 1 Unreport Threat 1 | . . 1 Zone Layout 3 | . 1 2 Fabricator Hacks . | . . . Repair Station Hacks . | . . . Recycling Unit Hacks . | . . . Scanalyzer . | . . . Garrison Access Hacks . | . . . Unauthorized Hacks 13 | . 4 9 Terminals 5 | . 1 4 Botnet 5 | . 1 4 Fabricators . | . . . Repair Stations . | . . . Recycling Units . | . . . Scanalyzers . | . . . Garrison Access . | . . . Data Cores Recovered . | . . . Used . | . . . Hacking Detections 6 | . 2 4 Full Trace Events 2 | . 2 . Feedback Events . | . . . Feedback Blocked . | . . . Robot Schematics Acquired . | . . . Robots Built . | . . . Matter . | . . . Time . | . . . Total Robot Build Rating . | . . . Part Schematics Acquired . | . . . Parts Built . | . . . Matter . | . . . Time . | . . . Total Part Build Rating . | . . . Parts Repaired . | . . . Time . | . . . Parts Recycled . | . . . Recycled Matter . | . . . Retrieved Matter . | . . . Retrieved Components . | . . . Parts Scanalyzed . | . . . Part Schematics Acquired . | . . . Parts Damaged . | . . . Bothacking | -11 -10 -9 ------------ Run | Scr Mat Mat Used RIF Installer . | . . . Robots Hacked 5 | . . 5 Non-combat 4 | . . 4 Combat 1 | . . 1 Robot Hacks Applied 9 | . . 9 parse_system 5 | . . 5 no_distress 4 | . . 4 Relay Couplers Released . | . . . Robots Rewired . | . . . Allies Hacked . | . . . Hacks Repelled . | . . . Allies | -11 -10 -9 -------- Run | Scr Mat Mat Total Allies . | . . . Largest Group . | . . . Highest-Rated Group . | . . . Highest-Rated Ally . | . . . Total Orders . | . . . Ally Attacks . | . . . Total Damage . | . . . Kills . | . . . Allies Corrupted . | . . . Allies Melted . | . . . Intel | -11 -10 -9 ------- Run | Scr Mat Mat Robot Analysis Total . | . . . Derelict Logs Recovered . | . . . Drone Launches . | . . . Drone Recoveries . | . . . Exploration | -11 -10 -9 ------------- Run | Scr Mat Mat Turns Passed 2315 | 95 587 1633 Spaces Moved 1108 | 52 250 806 Core 19 | 11 . 8 Treads 52 | . . 52 Legs 646 | 41 80 525 Wheels . | . . . Hover 11 | . . 11 Flight 380 | . 170 210 Fastest Speed 34 | 50 117 34 Average Speed 107 | 123 118 102 Slowest Speed 290 | 200 290 200 Overloaded Moves . | . . . Propulsion Burnouts . | . . . Robots Hopped . | . . . Cave-ins Triggered . | . . . Exploration Rate (%) 35 | 4 39 64 Regions Visited 2 Branch Regions . Pre-discovered Areas . | . . . Known Exits Taken 1 | . 1 . Unknown Exits Taken 1 | 1 . . Scrap Searched . | . . . Spaces Dug . | . . . Terrain Destroyed 5 | . . 5 Melee . | . . . Projectile . | . . . AOE 5 | . . 5 Actions | -11 -10 -9 --------- Run | Scr Mat Mat Total 1980 | 76 489 1415 Wait 569 | . 183 386 Move 1106 | 51 249 806 Hop . | . . . Pick Up 44 | 13 5 26 Fast Attach 4 | 1 2 1 Attach 25 | 6 . 19 Detach 1 | . . 1 Swap 29 | 1 8 20 Drop 30 | 1 12 17 Fire 49 | 3 30 16 Melee 123 | . . 123 Ram . | . . . Kick . | . . . Crush . | . . . Escape Stasis . | . . . Rewire . | . . . Trap . | . . . Miscellaneous . | . . . Route ------- -11/Scrapyard -10/Materials (discovered 2 exits: *Mat / [*Min]) -9/Materials (discovered 2 exits: *Mat / *Min) History --------- Turn | Location | Event 2 | -11/Scrapyard | Met Revision 17 20 | -11/Scrapyard | Discovered new exit (range 15) 96 | -11/Scrapyard | Entered Materials 270 | -10/Materials | Discovered new exit (range 16) 307 | -10/Materials | Build established: Mutant 450 | -10/Materials | Discovered new exit (range 13) 646 | -10/Materials | Identified exit to Materials 683 | -10/Materials | Entered another Materials area 683 | -9/Materials | Evolved 2 slots: Propulsion x1, Utility x1 860 | -9/Materials | Lost 6 parts (1p2n1u2w) 1173 | -9/Materials | Discovered new exit (range 16) 1190 | -9/Materials | Identified exit to Materials 1323 | -9/Materials | Build established: Scavenger-Mutant 1663 | -9/Materials | Discovered new exit (range 10) 1673 | -9/Materials | Identified exit to Mines 1748 | -9/Materials | Core integrity fell below 50% 1775 | -9/Materials | Lost 3 parts (1n1u1w) 2218 | -9/Materials | Core integrity fell below 20% 2232 | -9/Materials | Lost 4 parts (1p3n) 2316 | -9/Materials | Destroyed by L-31 Rogue with Katana Last Messages --------------- 02206_ Door malfunctions. 02210_ Acquired 10 matter. 02213_ System corrupted: Katana targeting data glitched. 02215_ Door malfunctions. 02216_ Destroyed Ion Engine. 02223_ G-34 Mercenary destroyed. 02267_ Imp. Hover Unit destroyed. 02267_ Ion Engine destroyed. 02268_ Y-45 Defender destroyed. 02271_ Acquired Lgt. Treads. 02276_ Acquired Imp. Ion Engine. 02286_ W-16 Scout destroyed. 02288_ C-30 ARC bursts open, deploying its payload. 02288_ L-31 Rogue unfolds itself. 02288_ G-34 Mercenary unfolds itself. 02288_ Acquired 20 matter. 02291_ ECM Suite destroyed. 02301_ G-34 Mercenary destroyed. 02302_ U-05 Engineer repairs door. 02313_ Lgt. Treads severed. Map ----- +----------------------------------------------------+ | ?##?###??# #####?##???#?## ????????????????????? | | ?##???#?## ##########?#??# #???????????????????? | | ?#??#??### # #????# #???????????????????? | | ########## # #????# #??#????????????????? | | #### # ####?# ############????????? | | ! #### # ##?#?# ## "T"^ #????????? | | + %+= ###??# ##%% #????????? | | " """ #### #[ ###?## ## """ """ #????????? | | " """ ######!# ##### # """ """ #????????? | | " """ ####?# # + +%""" """ #????????? | | ##?###!# ##### # #????????? | | ###?## ############## # ^ #????????? | | #+##########+############## # #????????? | | # % # # ## ########????????? | | # [ # """ """ # ####???????????????? | | / %! # """ """ + #??????????????????? | | # # """ """ # #??????????????????? | | #########+# # ############ ?????? | | ####???# ##############%[ % ????? | | = ##???###= %!!*%" ????? | | ##????## ####=%%[ ! ????? | | > #????#?# #####+############# ??????? | | ##???#?# # !%[[= #???????????????? | | ##?#?######## # ! != #???????????????? | | ##?#########? # %= #???????????????? | | ##?#?## ?? # @= #???????????????? | | ##????# """ ? ? #l #???????????????? | | #?#??## """ ???? /g #???????????????? | | T ##???## """ ????? # ] #???????????????? | | ##?#??# ???## ## #???????????????? | | #??#?# ????# ?###########???????????????? | | #????#######????#????????????????????????????? | | #????????????????????????????????????????????? | | " #????????????????????????????????????????????? | | " #????????????????????????????????????????????? | | " ##????????????????????????????????????????????? | | #############?????????????????????????????????? | | # ## ?????????????????????????????????? | | " # """ """ ## ?????????????????????????????????? | | " # """ """ / ?????????????????????????????????? | | " # """ """ ## ?????????????????????????????????? | | + ## ?????????????????????????????????? | | # ###?????????????????????????????????? | | " # #?#?????????????????????????????????? | | "????????????????????????????????????????????????? | | ?????????????????????????????????????????????????? | | ?????????????????????????????????????????????????? | | ?????????????????????????????????????????????????? | | ?????????????????????????????????????????????????? | | "????????????????????????????????????????????????? | +----------------------------------------------------+ Best States ------------- Heat Dissipation 28 Energy Generation 12 Energy Capacity 265 Matter Stores 300 Matter Capacity 300 Sight Range 16 Robot Scan Range 10 Terrain Scan Range 16 Terrain Scan Density 85 ECM Strength 1 Evasion (%) 63 Recoil Reduction 1 Item Schematics ----------------- None Robot Schematics ------------------ None Fabricated ------------ Nothing Alien Tech Used ----------------- None Achievements -------------- None Challenges ------------ None Game ------ Seed ImpulseSpreadStripper Manual? 0 Play Time 00:45:37 Cumulative 16.8 hours Start 2019.11.16 @ 23:13:11 End 2019.11.17 @ 00:08:37 Sessions 1 Manual Loads 0 Difficulty Rogue Special Mode None Game No. 23 Rogue 23 Adventurer 0 Explorer 0 Win Type - Total 0 Types 0/0/0/0/0/0/0 Lore% 18 Gallery% 15 Achievement% 17 Wizard Run 0 Options --------- ASCII 0 Keyboard 0 Movement Mouse Keybinds 0 Fullscreen 1 Font 18/X11 Map View 76x50 Tactical HUD 1 Map Filters NONE Filters LOW_CONTRAST(13,24,33) Steam 1 RUN: d19a4453-a447-41d9-98b8-d7c76f4ef9f8